[Event "*** Titled Tuesday Blitz"]
[Site "Chess.com"]
[Date "2019.02.05"]
[Round "7"]
[White "vugarrasulov"]
[Black "Sosat98"]
[Result "1-0"]
[WhiteElo "2855"]
[BlackElo "2608"]
[TimeControl "180+2"]
[EndTime "14:39:33 PST"]
[Termination "vugarrasulov won on time"]

1. e4 {[%clk 0:03:01.9]} 1... c5 {[%clk 0:03:00.9]} 2. Nf3 {[%clk 0:03:02.7]}
2... d6 {[%clk 0:03:02.7]} 3. d4 {[%clk 0:03:03.9]} 3... cxd4 {[%clk 0:03:03.3]}
4. Nxd4 {[%clk 0:03:05.8]} 4... Nf6 {[%clk 0:03:04.6]} 5. Nc3 {[%clk 0:03:07.4]}
5... Nc6 {[%clk 0:03:06.3]} 6. Bg5 {[%clk 0:03:08]} 6... e6 {[%clk 0:03:07]} 7.
Qd2 {[%clk 0:03:08.9]} 7... a6 {[%clk 0:03:08.3]} 8. O-O-O {[%clk 0:03:09.5]}
8... Be7 {[%clk 0:03:09.8]} 9. f3 {[%clk 0:03:09.5]} 9... Nxd4 {[%clk
0:03:08.1]} 10. Qxd4 {[%clk 0:03:10.5]} 10... b5 {[%clk 0:03:09.6]} 11. Kb1
{[%clk 0:02:58.6]} 11... Bb7 {[%clk 0:03:07.7]} 12. h4 {[%clk 0:02:59.6]} 12...
Rc8 {[%clk 0:03:05.7]} 13. Qd2 {[%clk 0:02:57.5]} 13... O-O {[%clk 0:03:06.1]}
14. Bd3 {[%clk 0:02:58.3]} 14... Nd7 {[%clk 0:03:00.8]} 15. Ne2 {[%clk
0:02:51.1]} 15... f6 {[%clk 0:02:57.1]} 16. Be3 {[%clk 0:02:43.7]} 16... Ne5
{[%clk 0:02:57.8]} 17. Nd4 {[%clk 0:02:42]} 17... Qd7 {[%clk 0:02:57.4]} 18. h5
{[%clk 0:02:38]} 18... d5 {[%clk 0:02:46.6]} 19. exd5 {[%clk 0:02:31.6]} 19...
Bxd5 {[%clk 0:02:44.5]} 20. Be2 {[%clk 0:02:29.6]} 20... Rfd8 {[%clk 0:02:35.3]}
21. Rhe1 {[%clk 0:02:05.7]} 21... Qe8 {[%clk 0:02:25.5]} 22. h6 {[%clk
0:01:59.8]} 22... Nc4 {[%clk 0:02:10.4]} 23. Bxc4 {[%clk 0:01:58.3]} 23... Bxc4
{[%clk 0:02:08.9]} 24. Qa5 {[%clk 0:01:58.2]} 24... Qg6 {[%clk 0:02:03.4]} 25.
g4 {[%clk 0:01:50.8]} 25... Bd5 {[%clk 0:01:32.8]} 26. Rd2 {[%clk 0:01:37.6]}
26... b4 {[%clk 0:00:56.9]} 27. b3 {[%clk 0:01:18.8]} 27... Bb7 {[%clk
0:00:49.7]} 28. Qb6 {[%clk 0:01:15.6]} 28... Bd5 {[%clk 0:00:45.2]} 29. Nxe6
{[%clk 0:01:11.7]} 29... Rd6 {[%clk 0:00:39.7]} 30. Nf4 {[%clk 0:01:06.4]} 30...
Qf7 {[%clk 0:00:32.7]} 31. Nxd5 {[%clk 0:00:45.4]} 31... Rxd5 {[%clk 0:00:34.6]}
32. Rxd5 {[%clk 0:00:40.4]} 32... Qxd5 {[%clk 0:00:34.8]} 33. Qxa6 {[%clk
0:00:39.9]} 33... Rc6 {[%clk 0:00:26.6]} 34. Qd3 {[%clk 0:00:36.1]} 34... Qxf3
{[%clk 0:00:21.6]} 35. Qd7 {[%clk 0:00:36.7]} 35... Qe4 {[%clk 0:00:19.3]} 36.
Qe8+ {[%clk 0:00:37.3]} 1-0

[Event "*** Titled Tuesday Blitz"]
[Site "Chess.com"]
[Date "2019.02.05"]
[Round "7"]
[White "RiskyDecision"]
[Black "LuisFSiles"]
[Result "0-1"]
[WhiteElo "2393"]
[BlackElo "2270"]
[TimeControl "180+2"]
[EndTime "14:39:39 PST"]
[Termination "LuisFSiles won on time"]

1. d4 {[%clk 0:03:01.9]} 1... Nf6 {[%clk 0:03:00.5]} 2. c4 {[%clk 0:03:02.1]}
2... g6 {[%clk 0:03:01.4]} 3. g3 {[%clk 0:03:02.9]} 3... Bg7 {[%clk 0:03:02.2]}
4. Bg2 {[%clk 0:03:04]} 4... O-O {[%clk 0:03:03.2]} 5. Nc3 {[%clk 0:03:03.4]}
5... d6 {[%clk 0:03:04.1]} 6. Nf3 {[%clk 0:03:04.8]} 6... c6 {[%clk 0:03:05.2]}
7. O-O {[%clk 0:03:06.2]} 7... Qa5 {[%clk 0:03:06.3]} 8. e4 {[%clk 0:03:04.2]}
8... e5 {[%clk 0:03:07.5]} 9. h3 {[%clk 0:02:55.4]} 9... Re8 {[%clk 0:03:03.9]}
10. Re1 {[%clk 0:02:54.7]} 10... Nbd7 {[%clk 0:02:58.2]} 11. d5 {[%clk
0:02:46.2]} 11... cxd5 {[%clk 0:02:58]} 12. cxd5 {[%clk 0:02:39.1]} 12... b5
{[%clk 0:02:53.5]} 13. a4 {[%clk 0:02:37.1]} 13... a6 {[%clk 0:02:48]} 14. Bd2
{[%clk 0:02:26]} 14... b4 {[%clk 0:02:33.5]} 15. Na2 {[%clk 0:02:25.9]} 15...
Rb8 {[%clk 0:02:34.3]} 16. Re3 {[%clk 0:01:50.4]} 16... Nc5 {[%clk 0:02:25.1]}
17. Ne1 {[%clk 0:01:44.9]} 17... Bh6 {[%clk 0:01:49.5]} 18. Re2 {[%clk
0:01:22.7]} 18... Bxd2 {[%clk 0:01:49.3]} 19. Rxd2 {[%clk 0:01:22.3]} 19... Qxa4
{[%clk 0:01:45.7]} 20. Qxa4 {[%clk 0:01:09.3]} 20... Nxa4 {[%clk 0:01:46.3]} 21.
Nd3 {[%clk 0:01:11]} 21... Nc5 {[%clk 0:01:40.4]} 22. Naxb4 {[%clk 0:01:04.3]}
22... Nfxe4 {[%clk 0:01:37.3]} 23. Rdd1 {[%clk 0:00:59.9]} 23... Nxd3 {[%clk
0:01:24.4]} 24. Nxd3 {[%clk 0:01:00.3]} 24... Nf6 {[%clk 0:01:22.8]} 25. Ra2
{[%clk 0:00:29.9]} 25... Rb5 {[%clk 0:01:12]} 26. Nc1 {[%clk 0:00:23.6]} 26...
Bb7 {[%clk 0:01:11.3]} 27. Ne2 {[%clk 0:00:24.1]} 27... Nxd5 {[%clk 0:01:03.5]}
28. Bxd5 {[%clk 0:00:24.5]} 28... Bxd5 {[%clk 0:00:56.6]} 29. Rxa6 {[%clk
0:00:24.4]} 29... Bf3 {[%clk 0:00:57.4]} 30. Rd2 {[%clk 0:00:18.7]} 30... Rc8
{[%clk 0:00:57.6]} 31. Raxd6 {[%clk 0:00:16.6]} 31... Rbc5 {[%clk 0:00:57.4]}
32. Kh2 {[%clk 0:00:14.9]} 32... h5 {[%clk 0:00:54.9]} 33. Nc3 {[%clk
0:00:15.5]} 33... Kg7 {[%clk 0:00:42.1]} 34. Rd8 {[%clk 0:00:14.2]} 34... Rxd8
{[%clk 0:00:41.5]} 35. Rxd8 {[%clk 0:00:14.5]} 35... Ra5 {[%clk 0:00:40.1]} 36.
Re8 {[%clk 0:00:11.9]} 36... Ra1 {[%clk 0:00:38.2]} 37. g4 {[%clk 0:00:12.5]}
37... h4 {[%clk 0:00:38.8]} 0-1

[Event "*** Titled Tuesday Blitz"]
[Site "Chess.com"]
[Date "2019.02.05"]
[Round "7"]
[White "ChessWarrior7197"]
[Black "gmcorrales"]
[Result "1/2-1/2"]
[WhiteElo "2879"]
[BlackElo "2759"]
[TimeControl "180+2"]
[EndTime "14:39:51 PST"]
[Termination "Game drawn - insufficient material"]

1. e4 {[%clk 0:03:01.9]} 1... c5 {[%clk 0:03:01.1]} 2. Nf3 {[%clk 0:03:02.6]}
2... d6 {[%clk 0:03:01]} 3. d4 {[%clk 0:03:03]} 3... cxd4 {[%clk 0:03:02.9]} 4.
Nxd4 {[%clk 0:03:04.5]} 4... Nf6 {[%clk 0:03:03.4]} 5. Nc3 {[%clk 0:03:05.7]}
5... a6 {[%clk 0:03:03.5]} 6. h3 {[%clk 0:03:07.1]} 6... e6 {[%clk 0:02:54]} 7.
g4 {[%clk 0:03:07.7]} 7... b5 {[%clk 0:02:54]} 8. g5 {[%clk 0:03:07.1]} 8...
Nfd7 {[%clk 0:02:54.3]} 9. Bg2 {[%clk 0:03:07.9]} 9... Bb7 {[%clk 0:02:54.9]}
10. O-O {[%clk 0:03:08.3]} 10... Nc6 {[%clk 0:02:53.7]} 11. Nxc6 {[%clk
0:03:04.9]} 11... Bxc6 {[%clk 0:02:55.6]} 12. Qd4 {[%clk 0:03:01.9]} 12... Qb6
{[%clk 0:02:52.1]} 13. Be3 {[%clk 0:03:00.8]} 13... Qxd4 {[%clk 0:02:51]} 14.
Bxd4 {[%clk 0:03:02.7]} 14... h6 {[%clk 0:02:41.6]} 15. h4 {[%clk 0:02:57.9]}
15... hxg5 {[%clk 0:02:42]} 16. hxg5 {[%clk 0:02:59.8]} 16... Rh4 {[%clk
0:01:51.4]} 17. f3 {[%clk 0:02:45.9]} 17... Be7 {[%clk 0:01:39.1]} 18. Bf2
{[%clk 0:02:22.6]} 18... Rh5 {[%clk 0:01:30]} 19. f4 {[%clk 0:02:19.4]} 19... e5
{[%clk 0:01:28.9]} 20. Bf3 {[%clk 0:02:18.6]} 20... Rh3 {[%clk 0:01:08.3]} 21.
Kg2 {[%clk 0:02:16.1]} 21... Rh8 {[%clk 0:00:56.9]} 22. Rh1 {[%clk 0:02:00]}
22... O-O-O {[%clk 0:00:57.4]} 23. Be3 {[%clk 0:01:52.1]} 23... exf4 {[%clk
0:00:57.9]} 24. Bxf4 {[%clk 0:01:54]} 24... Ne5 {[%clk 0:00:59.4]} 25. Nd5
{[%clk 0:01:50]} 25... Bxd5 {[%clk 0:00:55.9]} 26. exd5 {[%clk 0:01:51.9]} 26...
Nxf3 {[%clk 0:00:55.9]} 27. Kxf3 {[%clk 0:01:52.8]} 27... Kd7 {[%clk 0:00:57.3]}
28. c3 {[%clk 0:01:49.6]} 28... Rc8 {[%clk 0:00:56.6]} 29. Be3 {[%clk
0:01:40.2]} 29... a5 {[%clk 0:00:57.3]} 30. a3 {[%clk 0:01:40.1]} 30... Rb8
{[%clk 0:00:39.2]} 31. Bd4 {[%clk 0:01:37.8]} 31... Rxh1 {[%clk 0:00:32]} 32.
Rxh1 {[%clk 0:01:38.2]} 32... g6 {[%clk 0:00:27.7]} 33. Rh7 {[%clk 0:01:36.7]}
33... Rf8 {[%clk 0:00:28]} 34. Bf6 {[%clk 0:01:35.2]} 34... Bd8 {[%clk
0:00:17.8]} 35. b3 {[%clk 0:01:31.3]} 35... a4 {[%clk 0:00:18.2]} 36. bxa4
{[%clk 0:01:29.4]} 36... bxa4 {[%clk 0:00:20.1]} 37. Bxd8 {[%clk 0:01:22.2]}
37... Kxd8 {[%clk 0:00:19.9]} 38. Rh4 {[%clk 0:01:14.6]} 38... f6 {[%clk
0:00:21.1]} 39. Rf4 {[%clk 0:01:14.3]} 39... Ke7 {[%clk 0:00:21]} 40. Re4+
{[%clk 0:01:11]} 40... Kd7 {[%clk 0:00:21.7]} 41. Rxa4 {[%clk 0:01:11.8]} 41...
fxg5+ {[%clk 0:00:22.7]} 42. Kg4 {[%clk 0:01:10.7]} 42... Rf5 {[%clk 0:00:19.2]}
43. c4 {[%clk 0:01:09.6]} 43... Kc7 {[%clk 0:00:20.4]} 44. Ra6 {[%clk
0:01:08.6]} 44... Rf4+ {[%clk 0:00:20.4]} 45. Kxg5 {[%clk 0:01:08.5]} 45... Rxc4
{[%clk 0:00:22.3]} 46. Kxg6 {[%clk 0:01:08.1]} 46... Rc5 {[%clk 0:00:23.5]} 47.
Kf5 {[%clk 0:01:07.1]} 47... Rxd5+ {[%clk 0:00:24.7]} 48. Ke4 {[%clk 0:01:08.1]}
48... Rd1 {[%clk 0:00:26.3]} 49. Ke3 {[%clk 0:01:05.6]} 49... Kb7 {[%clk
0:00:26.6]} 50. Ra4 {[%clk 0:01:05.8]} 50... Kb6 {[%clk 0:00:27.8]} 51. Rd4
{[%clk 0:01:06.9]} 51... Rxd4 {[%clk 0:00:26.8]} 52. Kxd4 {[%clk 0:01:08.3]}
52... Kb5 {[%clk 0:00:28.7]} 53. Kd5 {[%clk 0:01:08.8]} 53... Ka4 {[%clk
0:00:30.6]} 54. Kc6 {[%clk 0:01:10]} 54... Kxa3 {[%clk 0:00:32.5]} 55. Kd5
{[%clk 0:01:11.9]} 55... Ka4 {[%clk 0:00:33.6]} 56. Kxd6 {[%clk 0:01:13.8]}
1/2-1/2

[Event "*** Titled Tuesday Blitz"]
[Site "Chess.com"]
[Date "2019.02.05"]
[Round "7"]
[White "AliKa2810"]
[Black "AryanTari"]
[Result "0-1"]
[WhiteElo "2470"]
[BlackElo "2805"]
[TimeControl "180+2"]
[EndTime "14:39:54 PST"]
[Termination "AryanTari won by resignation"]

1. e4 {[%clk 0:03:00.9]} 1... c6 {[%clk 0:02:59.5]} 2. d4 {[%clk 0:03:01.2]}
2... d5 {[%clk 0:02:59.4]} 3. e5 {[%clk 0:03:02.8]} 3... Bf5 {[%clk 0:03:00.2]}
4. c4 {[%clk 0:03:02.2]} 4... e6 {[%clk 0:02:59.5]} 5. Nc3 {[%clk 0:03:03.3]}
5... Ne7 {[%clk 0:02:59.3]} 6. Nge2 {[%clk 0:02:58.4]} 6... Nd7 {[%clk
0:02:48.8]} 7. Ng3 {[%clk 0:02:55.3]} 7... Bg6 {[%clk 0:02:50.1]} 8. c5 {[%clk
0:02:51.9]} 8... b6 {[%clk 0:02:42.5]} 9. b4 {[%clk 0:02:52.4]} 9... a5 {[%clk
0:02:43.5]} 10. Na4 {[%clk 0:02:10.5]} 10... axb4 {[%clk 0:02:37.7]} 11. Nxb6
{[%clk 0:02:11]} 11... Nxb6 {[%clk 0:02:38.1]} 12. cxb6 {[%clk 0:02:12.1]} 12...
Qxb6 {[%clk 0:02:39.4]} 13. h4 {[%clk 0:02:11.6]} 13... h6 {[%clk 0:02:27.2]}
14. h5 {[%clk 0:02:11.2]} 14... Bh7 {[%clk 0:02:28.2]} 15. Be3 {[%clk
0:02:04.2]} 15... Nf5 {[%clk 0:02:24.4]} 16. Nxf5 {[%clk 0:02:05]} 16... Bxf5
{[%clk 0:02:26.3]} 17. Bd3 {[%clk 0:02:04.6]} 17... Bxd3 {[%clk 0:02:22.8]} 18.
Qxd3 {[%clk 0:02:05.7]} 18... b3 {[%clk 0:02:24.2]} 19. O-O {[%clk 0:02:03.8]}
19... b2 {[%clk 0:02:23.8]} 20. Rab1 {[%clk 0:02:03.8]} 20... Rxa2 {[%clk
0:02:24.6]} 21. f4 {[%clk 0:02:02.6]} 21... Be7 {[%clk 0:01:55.8]} 22. f5 {[%clk
0:02:03.8]} 22... exf5 {[%clk 0:01:57.1]} 23. Qxf5 {[%clk 0:02:01.8]} 23... O-O
{[%clk 0:01:52.8]} 24. Qg4 {[%clk 0:01:16.7]} 24... Kh8 {[%clk 0:01:26]} 25. Kh2
{[%clk 0:00:49.2]} 25... Qb3 {[%clk 0:01:18.3]} 26. Rf3 {[%clk 0:00:48.7]} 26...
Qc2 {[%clk 0:00:57.3]} 27. Rg3 {[%clk 0:00:49]} 27... Qh7 {[%clk 0:00:57.8]} 28.
Bd2 {[%clk 0:00:29.2]} 28... Rg8 {[%clk 0:00:55.1]} 29. Qd1 {[%clk 0:00:27.4]}
29... Qe4 {[%clk 0:00:52.9]} 30. Bc3 {[%clk 0:00:28.2]} 30... Bg5 {[%clk
0:00:50.7]} 31. Rg4 {[%clk 0:00:23.8]} 31... Bf4+ {[%clk 0:00:46.2]} 32. g3
{[%clk 0:00:23.9]} 32... Qe3 {[%clk 0:00:46.7]} 33. Rxb2 {[%clk 0:00:16.3]}
33... Rxb2+ {[%clk 0:00:47.5]} 34. Bxb2 {[%clk 0:00:17.2]} 34... Qf2+ {[%clk
0:00:48.7]} 35. Kh3 {[%clk 0:00:18]} 35... Bxg3 {[%clk 0:00:49.9]} 36. Rxg3
{[%clk 0:00:18.6]} 36... Qxb2 {[%clk 0:00:51]} 37. Rf3 {[%clk 0:00:19]} 37...
Qb7 {[%clk 0:00:49.1]} 38. Qd3 {[%clk 0:00:14.4]} 38... Qd7+ {[%clk 0:00:50]}
39. Kg3 {[%clk 0:00:14.5]} 39... Rb8 {[%clk 0:00:50.9]} 40. Rf5 {[%clk
0:00:12.9]} 40... Rb2 {[%clk 0:00:48.3]} 41. Qf3 {[%clk 0:00:13]} 41... Kg8
{[%clk 0:00:47.7]} 42. Qa3 {[%clk 0:00:12.7]} 42... Rb3+ {[%clk 0:00:46.7]} 43.
Qxb3 {[%clk 0:00:13.2]} 43... Qxf5 {[%clk 0:00:48.3]} 44. Qb8+ {[%clk
0:00:13.6]} 44... Kh7 {[%clk 0:00:49.6]} 45. Qd6 {[%clk 0:00:13.9]} 45... Qd3+
{[%clk 0:00:48.4]} 46. Kg2 {[%clk 0:00:14.5]} 46... Qxd4 {[%clk 0:00:49]} 0-1

[Event "*** Titled Tuesday Blitz"]
[Site "Chess.com"]
[Date "2019.02.05"]
[Round "7"]
[White "Shant_Sargsyan"]
[Black "Fins0905"]
[Result "0-1"]
[WhiteElo "2794"]
[BlackElo "2649"]
[TimeControl "180+2"]
[EndTime "14:39:55 PST"]
[Termination "Fins0905 won by resignation"]

1. e4 {[%clk 0:03:01.9]} 1... d5 {[%clk 0:03:00.6]} 2. exd5 {[%clk 0:03:01.1]}
2... Qxd5 {[%clk 0:03:02.5]} 3. Nc3 {[%clk 0:03:02.1]} 3... Qa5 {[%clk
0:03:03.4]} 4. Nf3 {[%clk 0:03:03.3]} 4... Nf6 {[%clk 0:03:04.5]} 5. d4 {[%clk
0:03:04.7]} 5... c6 {[%clk 0:03:04.7]} 6. Bc4 {[%clk 0:03:05.1]} 6... Bf5 {[%clk
0:03:04.5]} 7. Ne5 {[%clk 0:03:05]} 7... e6 {[%clk 0:03:04.6]} 8. Bd2 {[%clk
0:03:05.4]} 8... Nbd7 {[%clk 0:03:02.6]} 9. Qe2 {[%clk 0:02:53.8]} 9... Nxe5
{[%clk 0:03:00.1]} 10. dxe5 {[%clk 0:02:54.2]} 10... Nd7 {[%clk 0:03:00.8]} 11.
f4 {[%clk 0:02:50.4]} 11... h5 {[%clk 0:02:51.5]} 12. O-O-O {[%clk 0:02:43.9]}
12... Bg4 {[%clk 0:02:45]} 13. Qd3 {[%clk 0:02:40.7]} 13... Bxd1 {[%clk
0:02:39.7]} 14. Rxd1 {[%clk 0:02:42.6]} 14... Qc7 {[%clk 0:02:34.8]} 15. Ne4
{[%clk 0:02:37.8]} 15... Nc5 {[%clk 0:02:28.4]} 16. Qe3 {[%clk 0:02:29.4]} 16...
Nxe4 {[%clk 0:02:24.1]} 17. Qxe4 {[%clk 0:02:31.3]} 17... g6 {[%clk 0:02:02.4]}
18. Be3 {[%clk 0:02:32]} 18... Rd8 {[%clk 0:01:56.3]} 19. Rf1 {[%clk 0:02:29.4]}
19... h4 {[%clk 0:01:00.3]} 20. g4 {[%clk 0:02:21.2]} 20... hxg3 {[%clk
0:00:59.4]} 21. hxg3 {[%clk 0:02:23.1]} 21... Qa5 {[%clk 0:00:49.3]} 22. c3
{[%clk 0:01:03.4]} 22... Bc5 {[%clk 0:00:43.2]} 23. Bd2 {[%clk 0:00:58.5]} 23...
Rh2 {[%clk 0:00:40]} 24. Rd1 {[%clk 0:00:56.2]} 24... Qb6 {[%clk 0:00:33.4]} 25.
Bd3 {[%clk 0:00:38.1]} 25... Rxd2 {[%clk 0:00:32.3]} 26. Rxd2 {[%clk 0:00:26.2]}
26... Be3 {[%clk 0:00:32.7]} 27. b4 {[%clk 0:00:12.6]} 27... Bxd2+ {[%clk
0:00:32.8]} 28. Kxd2 {[%clk 0:00:14.5]} 28... Qf2+ {[%clk 0:00:34.2]} 29. Qe2
{[%clk 0:00:15.6]} 29... Qxg3 {[%clk 0:00:33.4]} 30. Qe3 {[%clk 0:00:15.9]}
30... Qxe3+ {[%clk 0:00:32.2]} 31. Kxe3 {[%clk 0:00:17.8]} 31... Ke7 {[%clk
0:00:32.7]} 32. a4 {[%clk 0:00:18.7]} 32... Rh8 {[%clk 0:00:33.1]} 33. b5 {[%clk
0:00:19.9]} 33... c5 {[%clk 0:00:30]} 34. a5 {[%clk 0:00:20.2]} 34... b6 {[%clk
0:00:30.3]} 35. a6 {[%clk 0:00:20.1]} 35... Rh3+ {[%clk 0:00:29.2]} 36. Ke4
{[%clk 0:00:21.2]} 36... Rh4 {[%clk 0:00:29.1]} 37. Kf3 {[%clk 0:00:21.2]} 37...
Kf8 {[%clk 0:00:28.5]} 38. c4 {[%clk 0:00:20.8]} 38... Kg7 {[%clk 0:00:29.2]}
39. Ke3 {[%clk 0:00:22.2]} 39... Kh6 {[%clk 0:00:29.6]} 40. Be4 {[%clk
0:00:23.4]} 40... Rh3+ {[%clk 0:00:28.3]} 41. Bf3 {[%clk 0:00:23.6]} 41... g5
{[%clk 0:00:28.7]} 42. Ke4 {[%clk 0:00:25.2]} 42... Rh4 {[%clk 0:00:28.7]} 43.
Ke3 {[%clk 0:00:24.5]} 43... Rxf4 {[%clk 0:00:29]} 0-1

[Event "*** Titled Tuesday Blitz"]
[Site "Chess.com"]
[Date "2019.02.05"]
[Round "7"]
[White "Abund"]
[Black "Gabrielian_Artur"]
[Result "0-1"]
[WhiteElo "2535"]
[BlackElo "2728"]
[TimeControl "180+2"]
[EndTime "14:40:02 PST"]
[Termination "Gabrielian_Artur won on time"]

1. Nf3 {[%clk 0:03:01.9]} 1... c5 {[%clk 0:03:00.2]} 2. c4 {[%clk 0:03:00.7]}
2... Nc6 {[%clk 0:03:00.7]} 3. Nc3 {[%clk 0:03:01.9]} 3... e5 {[%clk 0:03:01]}
4. d3 {[%clk 0:02:49.6]} 4... g6 {[%clk 0:02:59.9]} 5. Bg5 {[%clk 0:02:47.2]}
5... f6 {[%clk 0:02:58.4]} 6. Bd2 {[%clk 0:02:46.5]} 6... Bg7 {[%clk 0:02:56.6]}
7. g3 {[%clk 0:02:36.9]} 7... Nge7 {[%clk 0:02:56.3]} 8. Bg2 {[%clk 0:02:38]}
8... O-O {[%clk 0:02:56.7]} 9. O-O {[%clk 0:02:37.9]} 9... d6 {[%clk 0:02:57.7]}
10. a3 {[%clk 0:02:33.4]} 10... Be6 {[%clk 0:02:57.3]} 11. Rb1 {[%clk 0:02:21]}
11... a5 {[%clk 0:02:55.1]} 12. e4 {[%clk 0:02:11.9]} 12... Qd7 {[%clk 0:02:54]}
13. Nd5 {[%clk 0:02:06.1]} 13... Rab8 {[%clk 0:02:42.9]} 14. b4 {[%clk
0:02:01.4]} 14... axb4 {[%clk 0:02:43.7]} 15. axb4 {[%clk 0:02:02.4]} 15... cxb4
{[%clk 0:02:30.5]} 16. Nxb4 {[%clk 0:01:36.9]} 16... Nxb4 {[%clk 0:02:30.8]} 17.
Rxb4 {[%clk 0:01:34.3]} 17... b5 {[%clk 0:02:22.6]} 18. Qb1 {[%clk 0:01:32.4]}
18... Rb7 {[%clk 0:01:33.8]} 19. cxb5 {[%clk 0:01:09.2]} 19... Rfb8 {[%clk
0:01:33.5]} 20. b6 {[%clk 0:01:06.5]} 20... d5 {[%clk 0:01:29.1]} 21. Rb5 {[%clk
0:00:39.5]} 21... dxe4 {[%clk 0:01:25.5]} 22. Ne1 {[%clk 0:00:25.6]} 22... f5
{[%clk 0:01:20.2]} 23. Bg5 {[%clk 0:00:18.8]} 23... Nd5 {[%clk 0:01:20]} 24. Qb2
{[%clk 0:00:14.7]} 24... Rxb6 {[%clk 0:01:17.5]} 25. Rxb6 {[%clk 0:00:14.7]}
25... Rxb6 {[%clk 0:01:18.4]} 26. Qa1 {[%clk 0:00:13.7]} 26... h6 {[%clk
0:00:50.2]} 27. Qa8+ {[%clk 0:00:13.2]} 27... Kh7 {[%clk 0:00:41.8]} 28. Bd8
{[%clk 0:00:10.6]} 28... Rd6 {[%clk 0:00:41.1]} 29. dxe4 {[%clk 0:00:11.9]}
29... fxe4 {[%clk 0:00:40.7]} 30. Ba5 {[%clk 0:00:11.3]} 30... e3 {[%clk
0:00:36.5]} 31. fxe3 {[%clk 0:00:07.8]} 31... Nxe3 {[%clk 0:00:37.6]} 32. Rf2
{[%clk 0:00:08.6]} 32... Nxg2 {[%clk 0:00:38.8]} 33. Qxg2 {[%clk 0:00:09]} 33...
Rd1 {[%clk 0:00:35.2]} 34. Re2 {[%clk 0:00:08.1]} 34... Bd5 {[%clk 0:00:33.7]}
35. Qf2 {[%clk 0:00:08.1]} 35... Bb7 {[%clk 0:00:33.7]} 36. Rd2 {[%clk
0:00:07.1]} 36... Qc6 {[%clk 0:00:31.8]} 37. Qe3 {[%clk 0:00:05.6]} 37... Qh1+
{[%clk 0:00:30.5]} 38. Kf2 {[%clk 0:00:07]} 38... Qxh2+ {[%clk 0:00:31.2]} 0-1

[Event "*** Titled Tuesday Blitz"]
[Site "Chess.com"]
[Date "2019.02.05"]
[Round "7"]
[White "26andrej26"]
[Black "wadsy27"]
[Result "1-0"]
[WhiteElo "2427"]
[BlackElo "2318"]
[TimeControl "180+2"]
[EndTime "14:40:07 PST"]
[Termination "26andrej26 won by resignation"]

1. e4 {[%clk 0:03:01.9]} 1... c5 {[%clk 0:02:59.6]} 2. Nf3 {[%clk 0:03:03.3]}
2... e6 {[%clk 0:02:56.6]} 3. d4 {[%clk 0:03:04.3]} 3... cxd4 {[%clk 0:02:56.2]}
4. Nxd4 {[%clk 0:03:06.2]} 4... Nc6 {[%clk 0:02:56.4]} 5. Nc3 {[%clk 0:03:07.5]}
5... Qc7 {[%clk 0:02:56.4]} 6. Be3 {[%clk 0:03:08.6]} 6... a6 {[%clk 0:02:55.6]}
7. Qd2 {[%clk 0:03:08.4]} 7... Nf6 {[%clk 0:02:55]} 8. O-O-O {[%clk 0:03:09.3]}
8... Be7 {[%clk 0:02:53.1]} 9. f3 {[%clk 0:03:10.3]} 9... O-O {[%clk 0:02:53.7]}
10. g4 {[%clk 0:03:11.5]} 10... b5 {[%clk 0:02:52.9]} 11. Kb1 {[%clk 0:03:12.9]}
11... Bb7 {[%clk 0:02:47.2]} 12. Bd3 {[%clk 0:03:13.6]} 12... Ne5 {[%clk
0:02:37.8]} 13. g5 {[%clk 0:03:11.8]} 13... Nh5 {[%clk 0:02:36.8]} 14. Nce2
{[%clk 0:03:07.6]} 14... d5 {[%clk 0:02:27.6]} 15. Ng3 {[%clk 0:03:02.7]} 15...
dxe4 {[%clk 0:02:07.1]} 16. fxe4 {[%clk 0:02:50.1]} 16... Nxg3 {[%clk
0:01:55.4]} 17. hxg3 {[%clk 0:02:52]} 17... Ng4 {[%clk 0:01:49.2]} 18. Rh3
{[%clk 0:02:22]} 18... Rfd8 {[%clk 0:01:36.5]} 19. Rdh1 {[%clk 0:01:45.9]} 19...
h6 {[%clk 0:01:28.5]} 20. gxh6 {[%clk 0:01:46.7]} 20... g6 {[%clk 0:01:30]} 21.
h7+ {[%clk 0:01:45.8]} 21... Kh8 {[%clk 0:01:25]} 22. Nb3 {[%clk 0:01:46.9]}
22... Bf6 {[%clk 0:01:12.8]} 23. Bf4 {[%clk 0:01:42]} 23... Qe7 {[%clk
0:00:50.9]} 24. Re1 {[%clk 0:01:24.5]} 24... Rac8 {[%clk 0:00:47.6]} 25. e5
{[%clk 0:01:22.7]} 25... Bg7 {[%clk 0:00:37.7]} 26. Bg5 {[%clk 0:01:23.5]} 26...
f6 {[%clk 0:00:38.6]} 27. exf6 {[%clk 0:01:24.4]} 27... Bxf6 {[%clk 0:00:39.3]}
28. Bxf6+ {[%clk 0:01:23.9]} 28... Qxf6 {[%clk 0:00:40.5]} 29. Rh4 {[%clk
0:01:19.4]} 29... Ne5 {[%clk 0:00:36.4]} 30. Rf4 {[%clk 0:01:20.3]} 30... Qg7
{[%clk 0:00:34.2]} 31. Nc1 {[%clk 0:01:18.5]} 31... Nf3 {[%clk 0:00:33.7]} 32.
Qe3 {[%clk 0:01:15.6]} 32... Nxe1 {[%clk 0:00:34.2]} 33. Qxe1 {[%clk 0:01:17.5]}
33... e5 {[%clk 0:00:34.3]} 34. Rh4 {[%clk 0:01:13.9]} 34... e4 {[%clk
0:00:35.3]} 35. Be2 {[%clk 0:01:11.7]} 35... e3 {[%clk 0:00:29.4]} 36. Bg4
{[%clk 0:01:09.2]} 36... Rc4 {[%clk 0:00:26.3]} 37. Qxe3 {[%clk 0:01:09]} 37...
Be4 {[%clk 0:00:24.5]} 38. Bd1 {[%clk 0:01:00.3]} 38... Qd4 {[%clk 0:00:17.6]}
39. Qg5 {[%clk 0:00:48.3]} 39... Rdc8 {[%clk 0:00:12.8]} 40. Nd3 {[%clk
0:00:35]} 40... Rxc2 {[%clk 0:00:06.4]} 41. Bxc2 {[%clk 0:00:31.1]} 41... Rxc2
{[%clk 0:00:07]} 42. Rxe4 {[%clk 0:00:31]} 42... Qxe4 {[%clk 0:00:06.8]} 43.
Kxc2 {[%clk 0:00:31.5]} 43... Kxh7 {[%clk 0:00:06.4]} 44. Qh4+ {[%clk
0:00:31.9]} 1-0